bitfinex-derivatives/quotes_BTCF0:USTF0_20241221
["timestamp","ask_amount","ask_price","bid_price","bid_amount"]
[1734767969619,0.050488,99086.0,99085.0,0.00116]
[1734767969825,0.050494,99076.0,99075.0,0.1248]
[1734767970115,0.36084,99076.0,99075.0,0.01412345]
[1734767970311,0.411334,99076.0,99075.0,0.01412345]
[1734767972509,0.41142346,99076.0,99075.0,4.5e-07]
[1734767972917,0.050504,99055.0,99054.0,0.00012499]
[1734767973112,0.77217998,99055.0,99054.0,0.00012499]
[1734767973311,0.77221998,99055.0,99054.0,0.00012499]
[1734767974417,0.72171598,99055.0,99054.0,0.00012499]
[1734767974622,0.36091598,99055.0,99054.0,0.00012499]
[1734767975214,0.41241998,99055.0,99054.0,0.00012499]
[1734767975721,0.42041998,99055.0,99054.0,0.00012499]
[1734767976215,0.42141998,99055.0,99054.0,0.00012499]
[1734767976521,0.42141998,99055.0,99054.0,9.9e-07]
[1734767976824,0.42041998,99055.0,99054.0,9.9e-07]
[1734767977618,0.42041998,99055.0,99022.0,0.1152]
[1734767977619,0.050511,99042.0,99026.0,0.050519]
[1734767977818,0.3608,99032.0,99030.0,0.09785087]
[1734767978019,0.36084,99032.0,99022.0,0.21305087]
[1734767978220,0.36084,99032.0,99023.0,0.05052]
[1734767978420,4e-05,99032.0,99022.0,0.21305087]
[1734767979119,4e-05,99032.0,99026.0,0.050519]
[1734767979319,4e-05,99032.0,99031.0,1.6001]
[1734767979810,4e-05,99032.0,99020.0,0.01516]
[1734767979811,0.36993198,99032.0,99001.0,0.05755769]
[1734767980011,0.3608,99016.0,99012.0,0.2503]
[1734767980218,0.3608,99016.0,99013.0,0.02299727]
[1734767980421,0.411324,99016.0,99013.0,0.02299727]
[1734767980623,0.050525,99015.0,99014.0,0.02299727]
[1734767980822,0.3608,99016.0,99014.0,0.02299727]
[1734767981119,0.3608,99016.0,99015.0,0.02299727]
[1734767981519,0.772124,99016.0,99015.0,0.02299727]
[1734767981727,0.772124,99016.0,99015.0,8e-05]
[1734767981911,0.779124,99016.0,99015.0,8e-05]
[1734767982325,0.772124,99016.0,99015.0,8e-05]
[1734767982519,0.7286,99016.0,99015.0,8e-05]
[1734767985024,0.7306,99016.0,99015.0,0.01430439]
[1734767985424,0.7306,99016.0,99015.0,0.12890439]
[1734767986424,0.7316,99016.0,99015.0,0.12890439]
[1734767987121,0.7306,99016.0,99015.0,0.12890439]
[1734767987529,0.7306,99016.0,99015.0,1.48890439]
[1734767987931,0.3698,99016.0,99015.0,1.48890439]
[1734767989027,0.009,99016.0,99015.0,1.48890439]
[1734767990825,0.00692,99016.0,99015.0,1.48890439]
[1734767991532,0.3608,99026.0,99015.0,1.48890439]
[1734767991735,0.3608,99026.0,99025.0,0.05052]
[1734767992128,0.3608,99026.0,99025.0,0.06474439]
[1734767992330,0.3608,99026.0,99025.0,0.06482439]
[1734767992834,0.3608,99026.0,99025.0,1.42482439]
[1734767993931,0.3608,99026.0,99025.0,1.37430439]
[1734767994127,0.3608,99026.0,99025.0,0.01430439]
[1734767994433,0.3618,99026.0,99025.0,0.02330439]
[1734767994830,0.3608,99026.0,99025.0,0.01430439]
[1734767995026,0.3698,99026.0,99025.0,0.01530439]
[1734767995338,0.37825597,99026.0,99025.0,0.01530439]
[1734767996032,0.37925597,99026.0,99025.0,0.01530439]
[1734767999532,0.39283913,99026.0,99025.0,0.01530439]
[1734767999739,0.39283913,99026.0,99025.0,0.06582439]
[1734767999943,0.39287543,99026.0,99025.0,0.06582439]
[1734768000136,0.3708,99026.0,99025.0,0.06582439]
[1734768000330,0.3708,99026.0,99025.0,0.0516]
[1734768000530,0.54355162,99026.0,99025.0,0.0516]
[1734768001135,0.54355162,99026.0,99025.0,0.06578575]
[1734768001339,0.54355162,99026.0,99025.0,0.0516]
[1734768002237,0.16916296,99026.0,99025.0,0.0516]
[1734768005338,0.16904484,99026.0,99025.0,0.0516]
[1734768005533,0.15076203,99032.0,99025.0,0.3516]
[1734768005735,0.15076203,99032.0,99031.0,0.411317]
[1734768005934,0.15076203,99032.0,99031.0,0.411397]
[1734768006137,0.10980006,99032.0,99031.0,2.071397]
[1734768007030,0.18155389,99038.0,99037.0,0.050513]
[1734768007232,0.18131347,99052.0,99043.0,0.05051]
[1734768007437,0.18131347,99052.0,99051.0,0.050506]
[1734768007634,0.18131347,99052.0,99051.0,0.050586]
[1734768008037,0.18131347,99052.0,99051.0,1.410586]
[1734768008735,0.001,99052.0,99051.0,1.36808]
[1734768009045,0.001,99052.0,99051.0,1.718586]
[1734768009335,0.002,99052.0,99051.0,2.057866]
[1734768009540,0.1208091,99054.0,99051.0,2.057866]
[1734768009541,0.1158091,99054.0,99053.0,0.050505]
[1734768009742,0.1158091,99054.0,99053.0,0.411305]
[1734768009938,0.09048815,99064.0,99054.0,0.050504]
[1734768010143,0.09048815,99064.0,99053.0,0.36088]
[1734768010144,0.3608,99055.0,99053.0,8e-05]
[1734768010349,0.1221,99054.0,99052.0,0.050506]
[1734768010537,0.2418,99054.0,99052.0,0.050506]
[1734768010736,4e-05,99053.0,99052.0,0.050506]
[1734768011848,4e-05,99053.0,99052.0,0.051506]
[1734768012031,4e-05,99053.0,99052.0,1.411506]
[1734768012231,0.00804,99053.0,99052.0,1.411506]
[1734768012437,0.00804,99053.0,99052.0,1.711506]
[1734768012741,0.00804,99053.0,99052.0,1.712506]
[1734768013240,0.09043164,99062.0,99061.0,0.050501]
[1734768013443,0.3608,99075.0,99061.0,0.411301]
[1734768013646,0.3608,99075.0,99074.0,0.050495]
[1734768013845,0.3608,99086.0,99074.0,1.36008]
[1734768014036,0.3608,99086.0,99085.0,0.050489]
[1734768014232,0.3608,99099.0,99085.0,0.050489]
[1734768014233,0.3608,99099.0,99094.0,0.050484]
[1734768014447,0.3608,99099.0,99086.0,0.050488]
[1734768014646,0.3608,99099.0,99092.0,0.050485]
[1734768014947,0.3608,99099.0,99098.0,8e-05]
[1734768016838,0.3618,99099.0,99098.0,8e-05]
[1734768017240,0.3618,99099.0,99098.0,0.00708]
[1734768017642,0.001,99099.0,99098.0,0.00908]
[1734768018151,0.001,99099.0,99098.0,1.36908]
[1734768018355,0.001,99099.0,99098.0,1.72988]
[1734768018642,0.3608,99110.0,99098.0,1.72988]
[1734768018851,0.3608,99110.0,99109.0,0.050477]
[1734768019051,0.3608,99110.0,99109.0,0.050557]
[1734768020343,0.3608,99110.0,99109.0,8e-05]
[1734768020963,0.3608,99110.0,99109.0,0.00108]
[1734768021951,0.3608,99110.0,99109.0,0.00208]
[1734768022547,0.3618,99110.0,99109.0,0.00208]
[1734768023143,0.3608,99110.0,99109.0,0.00308]
[1734768023543,0.3608,99110.0,99109.0,0.00208]
[1734768023940,0.3618,99110.0,99109.0,0.00108]
[1734768024146,0.3618,99110.0,99109.0,0.00208]
[1734768024655,0.3618,99110.0,99109.0,0.00908]
[1734768025752,0.3608,99110.0,99109.0,0.01208]
[1734768027653,0.3608,99110.0,99109.0,1.37208]
[1734768028563,0.3608,99110.0,99109.0,0.01208]
[1734768028854,0.3608,99122.0,99109.0,0.37288]
[1734768029058,0.3608,99122.0,99110.0,1.36]
[1734768029251,0.3608,99122.0,99121.0,0.050551]
[1734768030263,0.3608,99122.0,99121.0,1.410551]
[1734768031756,0.3608,99122.0,99121.0,1.420551]
[1734768032161,0.3608,99122.0,99121.0,1.411551]
[1734768032459,0.3608,99122.0,99121.0,1.419551]
[1734768032651,0.3608,99122.0,99121.0,1.420551]
[1734768033264,0.3608,99122.0,99121.0,1.419551]
[1734768033565,0.3608,99122.0,99121.0,0.01008]
[1734768033753,0.3608,99122.0,99121.0,0.060551]
[1734768037360,0.3608,99122.0,99121.0,1.420551]
[1734768038867,0.3608,99122.0,99121.0,1.421551]
[1734768042467,0.36906537,99122.0,99121.0,1.421551]
[1734768044066,0.36906689,99122.0,99121.0,1.421551]
[1734768044467,0.36906871,99122.0,99121.0,1.421551]
[1734768046871,0.36907484,99122.0,99121.0,1.421551]
[1734768050266,0.41954484,99122.0,99121.0,0.01108]
[1734768050478,0.41954484,99122.0,99108.0,0.23764372]
[1734768050767,0.411277,99109.0,99108.0,0.23764372]
[1734768050967,0.411277,99109.0,99102.0,0.29705465]
[1734768050968,0.05048,99103.0,99102.0,0.29705465]
[1734768051168,0.36907484,99103.0,99095.0,0.35646558]
[1734768051377,0.05049,99083.0,99082.0,0.41695651]
[1734768051568,0.41956484,99083.0,99082.0,0.41587651]
[1734768051869,0.41960484,99083.0,99082.0,0.41587651]
[1734768052070,0.050494,99075.0,99074.0,1.36]
[1734768052270,0.050497,99070.0,99069.0,0.00011351]
[1734768052470,0.05877184,99070.0,99069.0,0.00011351]
[1734768052775,0.05880953,99070.0,99069.0,0.00011351]
[1734768053374,0.41960953,99070.0,99069.0,0.00011351]
[1734768053768,0.64975182,99070.0,99069.0,0.00011351]
[1734768054575,0.65875182,99070.0,99069.0,0.00111351]
[1734768055275,0.050505,99054.0,99049.0,1.410507]
[1734768055475,0.3608,99050.0,99049.0,1.410507]
[1734768055662,0.36084,99050.0,99049.0,1.410507]
[1734768056077,0.36084,99050.0,99049.0,1.36]
[1734768056570,0.36096481,99050.0,99034.0,0.050514]
[1734768056875,4e-05,99035.0,99034.0,0.050514]
[1734768057979,4e-05,99035.0,99034.0,0.003]
[1734768058573,0.00604,99035.0,99034.0,0.001]
[1734768058876,0.3608,99042.0,99034.0,0.002]
[1734768059078,0.3608,99042.0,99038.0,0.050509]
[1734768059273,0.3608,99042.0,99041.0,8e-05]
[1734768060077,0.36092481,99050.0,99044.0,0.050506]
[1734768060372,0.36092481,99050.0,99049.0,8e-05]
[1734768060873,0.3608,99072.0,99049.0,0.050583]
[1734768061081,0.3608,99072.0,99054.0,0.3608]
[1734768061269,0.3608,99072.0,99068.0,8e-05]
[1734768061875,0.3608,99072.0,99071.0,8e-05]
[1734768063373,0.3608,99072.0,99057.0,0.050499]
[1734768063764,4e-05,99058.0,99057.0,0.050499]
[1734768064377,0.15047085,99096.0,99075.0,0.05049]
[1734768064576,0.15047085,99096.0,99075.0,0.41129]
[1734768064971,0.15047085,99096.0,99075.0,0.41137]
[1734768065774,0.411279,99098.0,99075.0,0.41137]
[1734768066277,0.3608,99098.0,99075.0,0.41137]
[1734768066581,0.00251507,99076.0,99075.0,0.41137]
[1734768066974,0.3608,99098.0,99078.0,0.050489]
[1734768067176,0.3608,99098.0,99088.0,0.09789728]
[1734768067379,0.3608,99098.0,99097.0,8e-05]
[1734768068182,4e-05,99103.0,99097.0,8e-05]
[1734768068372,4e-05,99103.0,99099.0,0.050478]
[1734768068682,4e-05,99103.0,99102.0,8e-05]
[1734768070375,4e-05,99103.0,99102.0,0.11738]
[1734768070777,4e-05,99103.0,99102.0,0.12638]
[1734768071174,0.00104,99103.0,99102.0,0.12638]
[1734768072476,0.00104,99103.0,99102.0,0.11738]
[1734768072679,0.00104,99103.0,99102.0,0.11838]
[1734768073081,4e-05,99103.0,99102.0,0.11738]
[1734768073277,4e-05,99103.0,99102.0,0.59708]
[1734768073773,4e-05,99103.0,99102.0,0.59808]
[1734768074183,4e-05,99103.0,99102.0,0.59708]
[1734768074490,0.00104,99103.0,99102.0,0.59708]
[1734768074787,0.11997367,99122.0,99102.0,0.59708]
[1734768074984,0.11997367,99122.0,99108.0,0.050473]
[1734768075187,0.11997367,99122.0,99108.0,0.050553]
[1734768075389,0.3608,99128.0,99108.0,0.050553]
[1734768075589,0.3608,99128.0,99121.0,8e-05]
[1734768075786,0.3608,99128.0,99127.0,8e-05]
[1734768076673,0.3618,99128.0,99127.0,0.050544]
[1734768076978,0.3638,99128.0,99127.0,0.05043926]
[1734768077185,0.3638,99128.0,99127.0,0.05843926]
[1734768077580,0.3638,99128.0,99127.0,0.008]
[1734768077786,0.3628,99128.0,99127.0,0.008]
[1734768079179,0.002,99128.0,99127.0,0.008]
[1734768080186,0.002,99128.0,99127.0,0.3688]
[1734768082384,0.1236,99146.0,99127.0,0.3688]
[1734768082385,0.1236,99146.0,99127.0,0.3618]
[1734768082584,0.1236,99146.0,99130.0,0.050462]
[1734768082789,0.1236,99146.0,99145.0,8e-05]
[1734768083979,0.1256,99146.0,99145.0,8e-05]
[1734768085387,0.1256,99146.0,99145.0,0.00608]
[1734768085991,0.1256,99146.0,99145.0,0.00508]
[1734768086695,0.1236,99146.0,99145.0,0.00508]
[1734768086991,0.1256,99146.0,99145.0,0.00508]
[1734768088285,0.4864,99146.0,99145.0,0.00508]
[1734768088484,0.4844,99146.0,99145.0,0.00508]
[1734768088697,0.4874,99146.0,99145.0,0.00408]
[1734768089092,0.3638,99146.0,99145.0,0.00408]
[1734768089392,0.3628,99146.0,99145.0,0.00508]
[1734768090097,0.3618,99146.0,99145.0,0.12658]
[1734768090288,0.001,99146.0,99145.0,0.12658]
[1734768091392,0.001,99146.0,99145.0,0.12158]
[1734768091591,0.001,99146.0,99145.0,0.13058]
[1734768091998,0.12024351,99152.0,99145.0,0.13058]
[1734768092401,0.12024351,99152.0,99151.0,8e-05]
[1734768092699,0.12024351,99156.0,99151.0,8e-05]
[1734768093091,0.002,99152.0,99151.0,8e-05]
[1734768093704,0.002,99152.0,99146.0,0.165954]
[1734768094085,4e-05,99147.0,99146.0,0.165954]
[1734768095692,0.00104,99147.0,99146.0,0.173954]
[1734768098292,0.00104,99147.0,99146.0,0.008]
[1734768102608,4e-05,99147.0,99146.0,0.008]
[1734768102808,0.00104,99147.0,99146.0,0.007]
[1734768103414,0.05328496,99147.0,99146.0,0.007]
[1734768104810,0.15186669,99147.0,99146.0,0.007]
[1734768107108,0.05229564,99147.0,99146.0,0.007]
[1734768110408,0.05229564,99147.0,99146.0,0.057455]
[1734768110913,0.05329564,99147.0,99146.0,0.057455]
[1734768111113,0.05229564,99147.0,99146.0,0.057455]
[1734768111304,0.05329564,99147.0,99146.0,0.057455]
[1734768111917,0.05329564,99147.0,99146.0,0.007]
[1734768113313,0.05329564,99147.0,99146.0,0.057455]
[1734768117716,0.23371076,99147.0,99146.0,0.057455]
[1734768119018,0.05329564,99147.0,99146.0,0.057455]
[1734768119216,0.06157183,99147.0,99146.0,0.057455]
[1734768119417,0.05329564,99147.0,99146.0,0.057455]
[1734768123525,0.05329564,99147.0,99146.0,0.09384076]
[1734768123728,0.23485303,99147.0,99146.0,0.09384076]
[1734768123929,0.23485303,99147.0,99146.0,0.057455]
[1734768124320,0.23485303,99147.0,99146.0,0.09384106]
[1734768127029,0.24313551,99147.0,99146.0,0.057455]
[1734768127333,0.24313559,99147.0,99146.0,0.057455]
[1734768127727,0.0615782,99147.0,99146.0,0.057455]
[1734768129236,0.05329564,99147.0,99146.0,0.09385007]
[1734768130228,0.05325564,99147.0,99146.0,0.09385007]
[1734768130536,0.18155739,99150.0,99149.0,0.050453]
[1734768130723,0.18155739,99150.0,99149.0,0.44764807]
[1734768131733,0.18255739,99150.0,99149.0,0.44764807]
[1734768132042,0.001,99150.0,99149.0,0.44764807]
[1734768133140,0.001,99150.0,99149.0,0.45364807]
[1734768134132,0.15122201,99156.0,99149.0,0.45364807]
[1734768134439,0.15122201,99156.0,99155.0,0.05053]
[1734768134632,0.15122201,99156.0,99155.0,0.08692507]
[1734768135036,0.15122201,99156.0,99155.0,0.44772507]
[1734768135231,0.15122201,99162.0,99161.0,0.050447]
[1734768135436,0.15122201,99162.0,99161.0,0.08684207]
[1734768135628,0.15122201,99162.0,99161.0,0.08692207]
[1734768136841,0.09060301,99163.0,99162.0,0.050447]
[1734768137035,0.09060301,99163.0,99162.0,0.08684207]
[1734768137237,0.09060301,99163.0,99162.0,0.08692207]
[1734768138246,0.00151363,99166.0,99165.0,0.050445]
[1734768138545,0.00151363,99166.0,99165.0,0.050525]
[1734768139552,0.00251363,99166.0,99165.0,0.050525]
[1734768139741,0.00251363,99166.0,99165.0,8e-05]
[1734768139939,0.00651363,99166.0,99165.0,8e-05]
[1734768141544,0.01476167,99166.0,99140.0,0.3608]
[1734768141749,0.01476167,99166.0,99146.0,0.050455]
[1734768141750,0.06410479,99150.0,99146.0,0.050455]
[1734768141941,0.3608,99155.0,99146.0,0.050455]
[1734768142246,0.3608,99155.0,99154.0,8e-05]
[1734768143838,0.37105685,99155.0,99154.0,0.00408]
[1734768144743,0.37931449,99155.0,99154.0,0.00408]
[1734768145853,0.42947358,99155.0,99154.0,0.00408]
[1734768148353,0.54727358,99155.0,99154.0,0.00408]
[1734768148652,0.84727358,99155.0,99127.0,0.3608]
[1734768148847,0.3608,99141.0,99120.0,0.1152]
[1734768149044,0.09769804,99134.0,99126.0,0.050465]
[1734768149245,0.09769804,99134.0,99120.0,0.35438276]
[1734768149546,0.09769804,99134.0,99129.0,0.050463]
[1734768149942,0.09769804,99134.0,99132.0,0.050462]
[1734768150143,0.05046,99137.0,99132.0,0.050462]
[1734768150648,0.05046,99137.0,99120.0,0.35438276]
[1734768150649,0.05046,99137.0,99126.0,0.050465]
[1734768150850,0.05046,99137.0,99127.0,0.050465]
[1734768151146,0.001,99134.0,99132.0,0.009]
[1734768152162,0.3608,99133.0,99132.0,0.009]
[1734768152648,0.050463,99130.0,99123.0,0.00151315]
[1734768152851,0.3608,99125.0,99123.0,0.00151315]
[1734768153055,4e-05,99124.0,99123.0,0.00151315]
[1734768155351,4e-05,99124.0,99107.0,0.3608]
[1734768155548,0.059506,99124.0,99123.0,0.001]
[1734768155755,0.050472,99112.0,99107.0,0.3608]
[1734768155950,0.3608,99111.0,99105.0,0.050476]
[1734768156153,0.050475,99107.0,99103.0,0.1216]
[1734768156360,0.050475,99106.0,99103.0,0.1216]
[1734768156561,4e-05,99104.0,99103.0,0.1216]
[1734768156858,4e-05,99104.0,99103.0,0.172077]
[1734768157254,4e-05,99104.0,99103.0,0.001]
[1734768157477,4e-05,99104.0,99103.0,0.01]
[1734768158651,4e-05,99104.0,99103.0,0.011]
[1734768159261,0.00104,99104.0,99103.0,0.002]
[1734768161671,0.00104,99104.0,99084.0,0.050486]
[1734768161672,0.050501,99056.0,99046.0,0.3608]
[1734768161856,0.050503,99053.0,99051.0,0.23918276]
[1734768162260,4e-05,99052.0,99051.0,0.23918276]
[1734768163465,0.051543,99052.0,99051.0,0.007]
[1734768165461,0.051543,99052.0,99051.0,0.009]
[1734768168756,0.050505,99049.0,99045.0,0.115]
[1734768169065,0.36084,99046.0,99045.0,0.115]
[1734768169552,0.36084,99046.0,99043.0,0.1193]
[1734768169553,0.36084,99046.0,99020.0,0.01516]
[1734768169750,0.3608,99032.0,99019.0,0.234]
[1734768169961,0.3608,99023.0,99010.0,0.1194]
[1734768170151,0.050559,99020.0,99011.0,0.1176]
[1734768170351,0.09769804,99021.0,99000.0,3.10108]
[1734768170562,0.3608,99013.0,99001.0,0.13326033]
[1734768170761,0.3608,99003.0,99001.0,0.13326033]
[1734768170962,0.411328,99003.0,99002.0,0.01386033]
[1734768171560,0.3608,99003.0,99002.0,0.01386033]
[1734768172069,0.050523,99013.0,99002.0,0.01386033]
[1734768172256,0.009,99003.0,99002.0,0.01386033]
[1734768172457,0.009,99003.0,99001.0,0.1194]
[1734768172864,4e-05,99002.0,99001.0,0.1194]
[1734768174763,4e-05,99002.0,99001.0,0.1214]
[1734768175468,4e-05,99002.0,99001.0,0.1194]
[1734768175770,4e-05,99002.0,99001.0,0.1204]
[1734768175771,0.00104,99002.0,99001.0,0.1204]
[1734768176155,4e-05,99002.0,99001.0,0.1204]
[1734768176359,0.00104,99002.0,99001.0,0.1204]
[1734768176769,0.00104,99002.0,99001.0,0.1194]
[1734768176964,0.00104,99002.0,99001.0,0.1204]
[1734768178361,0.00104,99002.0,99001.0,0.4812]
[1734768179472,0.412369,99002.0,99000.0,3.09852]
[1734768179657,0.3608,99001.0,99000.0,3.0974]
[1734768179861,0.36084,99001.0,99000.0,1.49967351]
[1734768180071,0.36084,99001.0,99000.0,1.51379885]
[1734768180963,0.36084,99001.0,99000.0,1.33190615]
[1734768181266,4e-05,99001.0,99000.0,1.33190615]
[1734768181466,4e-05,99001.0,99000.0,1.38243615]
[1734768181973,4e-05,99001.0,99000.0,1.36831081]
[1734768182163,0.00104,99001.0,99000.0,1.36931081]
[1734768182570,0.09022373,99013.0,99000.0,1.31878081]
[1734768182865,0.09022373,99013.0,99004.0,0.050527]
[1734768183171,0.09022373,99013.0,99007.0,0.050526]
[1734768183374,0.09022373,99013.0,99008.0,0.050525]
[1734768183563,0.3608,99018.0,99008.0,0.050525]
[1734768183867,0.006,99013.0,99008.0,0.050525]
[1734768184472,0.008,99013.0,99012.0,0.3608]
[1734768184972,0.050527,99006.0,99000.0,1.31886081]
[1734768185266,4e-05,99001.0,99000.0,1.31778081]
[1734768185672,4e-05,99001.0,99000.0,1.33166874]
[1734768186573,0.00104,99001.0,99000.0,1.33366874]
[1734768187571,0.00104,99001.0,99000.0,0.60530174]
[1734768187769,0.4633148,99001.0,99000.0,0.25152357]
[1734768188070,0.31022384,99001.0,99000.0,0.24952357]
[1734768188368,0.31122384,99001.0,99000.0,0.25052357]
[1734768188574,0.00204,99001.0,99000.0,0.25052357]
[1734768188765,0.01024502,99001.0,99000.0,0.25052357]
[1734768188965,0.01024502,99001.0,99000.0,0.23663564]
[1734768189270,0.00824502,99001.0,99000.0,0.23563564]
[1734768189471,0.31024502,99001.0,99000.0,0.23663564]
[1734768189974,0.30924502,99001.0,99000.0,0.23563564]
[1734768190174,0.30924502,99001.0,99000.0,0.23663564]
[1734768190873,0.31124502,99001.0,99000.0,0.25060436]
[1734768191578,0.36536339,99001.0,99000.0,0.24960436]
[1734768191772,0.36836339,99001.0,99000.0,0.24960436]
[1734768192770,0.06836339,99001.0,99000.0,0.24960436]
[1734768192975,0.06836339,99001.0,99000.0,0.23563564]
[1734768193368,0.06836339,99001.0,99000.0,0.02341628]
[1734768194070,0.36838154,99001.0,99000.0,0.02341628]
[1734768194381,0.36838163,99001.0,99000.0,0.02341628]
[1734768194880,0.36838163,99001.0,98973.0,0.1248]
[1734768194881,0.050552,98956.0,98951.0,0.050555]
[1734768195071,0.3608,98956.0,98954.0,0.050553]
[1734768195269,0.3608,98967.0,98955.0,0.01396925]
[1734768195568,0.3608,98967.0,98953.0,0.1263]
[1734768195569,0.00822055,98966.0,98963.0,0.050548]
[1734768195768,0.3608,98967.0,98963.0,0.050548]
[1734768195769,0.00830009,98965.0,98964.0,0.1224]
[1734768196370,7.954e-05,98965.0,98964.0,0.1224]
[1734768196872,0.00830798,98965.0,98964.0,0.1224]
[1734768198373,7.954e-05,98965.0,98964.0,0.1224]
[1734768198778,0.00107954,98965.0,98964.0,0.1234]
[1734768199984,0.12045087,98970.0,98964.0,0.4842]
[1734768200278,0.12045087,98970.0,98969.0,8e-05]
[1734768201270,0.12145087,98970.0,98969.0,0.00108]
[1734768201670,0.001,98970.0,98969.0,0.00108]
[1734768202075,0.050548,98965.0,98964.0,0.00108]
[1734768202279,0.050557,98947.0,98933.0,0.17822171]
[1734768202477,0.050557,98947.0,98946.0,0.139736]
[1734768202783,0.050597,98947.0,98946.0,0.139736]
[1734768203169,0.050597,98947.0,98946.0,0.014136]
[1734768204385,0.050571,98922.0,98921.0,0.28811658]
[1734768204681,0.050611,98922.0,98921.0,0.04061658]
[1734768205086,0.02785913,98922.0,98921.0,0.06370606]
[1734768205381,0.02785913,98922.0,98913.0,0.1232]
[1734768205580,0.03685913,98922.0,98913.0,0.1232]
[1734768205786,4e-05,98921.0,98913.0,0.1232]
[1734768206285,4e-05,98921.0,98912.0,0.0036]
[1734768207382,0.09036311,98921.0,98912.0,0.0036]
[1734768208384,0.09136311,98921.0,98912.0,0.0036]
[1734768208588,0.00104,98921.0,98912.0,0.0036]
[1734768211587,0.050569,98920.0,98912.0,0.0036]
[1734768211790,0.411373,98913.0,98912.0,0.0036]
[1734768211991,0.411413,98913.0,98912.0,0.0036]
[1734768212589,0.4115094,98913.0,98912.0,0.0036]
[1734768212990,0.4125094,98913.0,98912.0,0.0036]
[1734768217791,0.56429097,98913.0,98912.0,0.0036]
[1734768217988,0.4125094,98913.0,98912.0,0.0036]
[1734768221790,0.42063581,98913.0,98912.0,0.0036]
[1734768222290,0.42064285,98913.0,98912.0,0.0036]
[1734768222797,0.42064217,98913.0,98912.0,0.0036]
[1734768223498,0.42064217,98913.0,98912.0,1e-06]
[1734768225403,0.050578,98903.0,98902.0,0.1223]
[1734768225590,0.41951077,98903.0,98902.0,0.1223]
[1734768225987,0.050579,98901.0,98900.0,0.1]
[1734768226193,0.05871177,98901.0,98900.0,0.1]
[1734768226393,0.05875177,98901.0,98900.0,0.1]
[1734768227591,0.05875177,98901.0,98892.0,0.1183]
[1734768227796,0.050583,98893.0,98892.0,0.1183]
[1734768228500,0.05876498,98893.0,98892.0,0.1183]
[1734768229198,0.14909034,98893.0,98892.0,0.1183]
[1734768230490,0.05876498,98893.0,98892.0,0.1183]
[1734768230898,0.06176498,98893.0,98892.0,0.1183]
[1734768231601,0.06176498,98893.0,98886.0,0.1206]
[1734768231897,0.050626,98887.0,98886.0,0.1206]
[1734768232093,0.05876798,98887.0,98886.0,0.171187]
[1734768232799,0.05876798,98887.0,98886.0,0.1206]
[1734768234201,0.05976798,98887.0,98886.0,0.1206]
[1734768234395,0.06176798,98887.0,98886.0,0.1206]
[1734768234993,0.06076798,98887.0,98886.0,0.1206]
[1734768235192,0.06176798,98887.0,98886.0,0.1206]
[1734768235590,0.06176798,98887.0,98884.0,0.1124]
[1734768235591,0.050587,98885.0,98884.0,0.1124]
[1734768235801,0.05872898,98885.0,98884.0,0.1124]
[1734768236100,0.05876898,98885.0,98884.0,0.1124]
[1734768236807,0.05881761,98885.0,98884.0,0.1124]
[1734768237505,0.06181761,98885.0,98884.0,0.1124]
[1734768237799,0.01123061,98885.0,98884.0,0.1124]
[1734768238007,0.1806763,98896.0,98884.0,0.1124]
[1734768238296,0.1806763,98896.0,98891.0,0.3608]
[1734768238297,0.050584,98892.0,98891.0,0.3608]
[1734768240291,0.051584,98892.0,98891.0,0.3608]
[1734768240803,0.052584,98892.0,98891.0,0.3608]
[1734768241010,0.050585,98891.0,98884.0,0.1124]
[1734768241198,0.050585,98891.0,98890.0,0.3608]
[1734768241800,0.001,98892.0,98890.0,0.3608]
[1734768242005,0.001,98891.0,98890.0,0.3608]
[1734768243013,0.050578,98903.0,98890.0,0.3608]
[1734768243203,0.12105548,98900.0,98898.0,0.3608]
[1734768243402,0.1806763,98913.0,98898.0,0.3608]
[1734768243604,0.3608,98944.0,98911.0,0.3608]
[1734768243807,0.05057,98920.0,98916.0,0.09769804]
[1734768245107,0.05057,98919.0,98916.0,0.09769804]
[1734768245414,0.3608,98936.0,98913.0,0.18075134]
[1734768245913,0.411361,98936.0,98935.0,8e-05]
[1734768246511,0.411361,98936.0,98903.0,0.24100179]
[1734768246512,0.050571,98917.0,98903.0,0.24100179]
[1734768246711,0.050571,98917.0,98903.0,0.10669479]
[1734768246712,0.411378,98904.0,98903.0,0.10669479]
[1734768246910,0.411418,98904.0,98893.0,0.30125224]
[1734768247120,0.411383,98894.0,98893.0,0.30125224]
[1734768247724,0.411423,98894.0,98893.0,0.30125224]
[1734768247903,0.050592,98876.0,98875.0,0.2366]
[1734768248313,0.050632,98876.0,98875.0,0.2366]
[1734768248514,0.06423772,98876.0,98875.0,0.2366]
[1734768249007,0.06423772,98876.0,98875.0,0.2386]
[1734768250014,0.07274011,98876.0,98875.0,0.2386]
[1734768250819,0.07373819,98876.0,98875.0,0.2366]
[1734768251008,0.07373819,98876.0,98875.0,0.2386]
[1734768251411,0.07373819,98876.0,98875.0,0.002]
[1734768251605,0.050598,98865.0,98864.0,0.00012244]
[1734768251810,0.38625985,98865.0,98864.0,0.00012244]
[1734768252015,0.050608,98844.0,98843.0,0.30125224]
[1734768252223,0.42986985,98844.0,98843.0,0.30125224]
[1734768252520,0.42990985,98844.0,98843.0,0.30125224]
[1734768253115,0.41986266,98844.0,98843.0,0.30125224]
[1734768253317,0.42992672,98844.0,98843.0,0.30125224]
[1734768253816,0.050609,98843.0,98834.0,0.12268]
[1734768254021,0.01838441,98842.0,98834.0,0.1216]
[1734768254220,4e-05,98835.0,98834.0,0.1216]
[1734768255321,4e-05,98835.0,98829.0,0.050616]
[1734768255621,0.01013339,98834.0,98827.0,0.3608]
[1734768255824,0.01013336,98833.0,98830.0,0.050615]
[1734768256022,0.01013336,98832.0,98830.0,0.050615]
[1734768256322,0.00909431,98844.0,98830.0,0.050615]